[Event "Titled Tuesday Blitz June 21 Early 2022"]
[White "Papp, Levente"]
[Black "Legenia, Artem"]
[WhiteFideId "751243"]
[BlackFideId "14136945"]
[WhiteElo "2308"]
[BlackElo "1936"]
[Result "1-0"]
[Round "07"]
[TimeControl "180+1"]
[Date "2022.06.22"]
[WhiteClock "0:00:39"]
[BlackClock "0:00:28"]

1. b3 {[%clk 0:03:00]}  d5 {[%clk 0:02:46]} 2. Bb2 {[%clk 0:03:01]}  Nf6 {[%clk 0:02:46]} 3. Nf3 {[%clk 0:03:01]}  Nbd7 {[%clk 0:02:46]} 4. c4 {[%clk 0:02:59]}  e6 {[%clk 0:02:44]} 5. g3 {[%clk 0:02:59]}  Bd6 {[%clk 0:02:44]} 6. Bg2 {[%clk 0:02:56]}  c6 {[%clk 0:02:44]} 7. d4 {[%clk 0:02:55]}  O-O {[%clk 0:02:44]} 8. O-O {[%clk 0:02:55]}  Qe7 {[%clk 0:02:43]} 9. Nc3 {[%clk 0:02:52]}  b6 {[%clk 0:02:35]} 10. Re1 {[%clk 0:02:41]}  Bb7 {[%clk 0:02:31]} 11. e4 {[%clk 0:02:40]}  dxe4 {[%clk 0:02:31]} 12. Nxe4 {[%clk 0:02:41]}  Nxe4 {[%clk 0:02:31]} 13. Rxe4 {[%clk 0:02:42]}  Nf6 {[%clk 0:02:23]} 14. Rh4 {[%clk 0:02:42]}  Rad8 {[%clk 0:02:18]} 15. Qc2 {[%clk 0:02:41]}  Ba3 {[%clk 0:01:55]} 16. Bxa3 {[%clk 0:02:36]}  Qxa3 {[%clk 0:01:53]} 17. Re1 {[%clk 0:02:37]}  c5 {[%clk 0:01:50]} 18. Ng5 {[%clk 0:02:17]}  Bxg2 {[%clk 0:01:41]} 19. Nxh7 {[%clk 0:02:17]}  g6 {[%clk 0:01:16]} 20. Nxf6+ {[%clk 0:02:11]}  Kg7 {[%clk 0:01:16]} 21. Kxg2 {[%clk 0:01:29]}  Kxf6 {[%clk 0:01:16]} 22. d5 {[%clk 0:01:30]}  exd5 {[%clk 0:01:08]} 23. cxd5 {[%clk 0:01:17]}  Kg7 {[%clk 0:01:08]} 24. Qc3+ {[%clk 0:01:14]}  f6 {[%clk 0:01:07]} 25. Re7+ {[%clk 0:01:14]}  Rf7 {[%clk 0:01:07]} 26. Rxf7+ {[%clk 0:01:14]}  Kxf7 {[%clk 0:01:07]} 27. Rh7+ {[%clk 0:01:13]}  Kg8 {[%clk 0:01:07]} 28. Qxf6 {[%clk 0:00:58]}  Kxh7 {[%clk 0:01:07]} 29. Qe7+ {[%clk 0:00:56]}  Kh6 {[%clk 0:01:03]} 30. Qxd8 {[%clk 0:00:56]}  Qxa2 {[%clk 0:01:04]} 31. d6 {[%clk 0:00:53]}  Qd2 {[%clk 0:01:00]} 32. Qh4+ {[%clk 0:00:51]}  Kg7 {[%clk 0:01:00]} 33. Qe7+ {[%clk 0:00:52]}  Kh6 {[%clk 0:01:00]} 34. d7 {[%clk 0:00:51]}  Qd5+ {[%clk 0:00:47]} 35. f3 {[%clk 0:00:50]}  Qd3 {[%clk 0:00:29]} 36. d8=Q {[%clk 0:00:40]}  Qc2+ {[%clk 0:00:29]} 37. Kf1 {[%clk 0:00:39]}  Qb1+ {[%clk 0:00:28]} 38. Qe1 {[%clk 0:00:39]} 1-0


[Site "https://www.chess.com"]

[Event "Titled Tuesday Blitz June 21 Early 2022"]
[White "Pappelis, Dimitrios"]
[Black "Jakubowska, Anna"]
[WhiteFideId "4215281"]
[BlackFideId "1121952"]
[WhiteElo "1998"]
[BlackElo "1878"]
[Result "1-0"]
[Round "07"]
[TimeControl "180+1"]
[Date "2022.06.22"]
[WhiteClock "0:01:12"]
[BlackClock "0:01:24"]

1. e4 {[%clk 0:02:53]}  c5 {[%clk 0:02:59]} 2. Nf3 {[%clk 0:02:53]}  e6 {[%clk 0:02:58]} 3. g3 {[%clk 0:02:51]}  d5 {[%clk 0:02:55]} 4. exd5 {[%clk 0:02:50]}  exd5 {[%clk 0:02:55]} 5. Bg2 {[%clk 0:02:49]}  Nf6 {[%clk 0:02:55]} 6. O-O {[%clk 0:02:49]}  Be7 {[%clk 0:02:56]} 7. d4 {[%clk 0:02:47]}  O-O {[%clk 0:02:53]} 8. c3 {[%clk 0:02:47]}  Nc6 {[%clk 0:02:50]} 9. Re1 {[%clk 0:02:38]}  Bg4 {[%clk 0:02:47]} 10. dxc5 {[%clk 0:02:32]}  Bxc5 {[%clk 0:02:43]} 11. Be3 {[%clk 0:02:32]}  Bd6 {[%clk 0:02:36]} 12. Nbd2 {[%clk 0:02:27]}  Qd7 {[%clk 0:02:29]} 13. Qb3 {[%clk 0:02:23]}  Rfe8 {[%clk 0:02:18]} 14. Bd4 {[%clk 0:02:06]}  Nxd4 {[%clk 0:02:14]} 15. Nxd4 {[%clk 0:02:03]}  Bc5 {[%clk 0:02:08]} 16. N2f3 {[%clk 0:01:49]}  Ne4 {[%clk 0:02:06]} 17. Rad1 {[%clk 0:01:48]}  h6 {[%clk 0:01:44]} 18. Nd2 {[%clk 0:01:25]}  Bxd1 {[%clk 0:01:43]} 19. Qxd1 {[%clk 0:01:22]}  Nf6 {[%clk 0:01:33]} 20. N2f3 {[%clk 0:01:17]}  Rxe1+ {[%clk 0:01:31]} 21. Qxe1 {[%clk 0:01:17]}  Re8 {[%clk 0:01:31]} 22. Qd1 {[%clk 0:01:17]}  Ne4 {[%clk 0:01:29]} 23. h3 {[%clk 0:01:14]}  Qa4 {[%clk 0:01:24]} 24. Qxa4 {[%clk 0:01:12]} 1-0


[Site "https://www.chess.com"]

[Event "Titled Tuesday Blitz June 21 Early 2022"]
[White "Paravyan, David"]
[Black "Jaracz, Pawel"]
[WhiteFideId "4194985"]
[BlackFideId "1102222"]
[WhiteElo "2569"]
[BlackElo "2459"]
[Result "1-0"]
[Round "07"]
[TimeControl "180+1"]
[Date "2022.06.21"]
[WhiteClock "0:00:44"]
[BlackClock "0:00:01"]

1. e4 {[%clk 0:03:00]}  c6 {[%clk 0:02:58]} 2. d4 {[%clk 0:03:00]}  d5 {[%clk 0:02:58]} 3. e5 {[%clk 0:03:00]}  c5 {[%clk 0:02:57]} 4. Nf3 {[%clk 0:02:59]}  cxd4 {[%clk 0:02:52]} 5. Nxd4 {[%clk 0:03:00]}  Nc6 {[%clk 0:02:53]} 6. Nxc6 {[%clk 0:02:57]}  bxc6 {[%clk 0:02:52]} 7. Bd3 {[%clk 0:02:58]}  e6 {[%clk 0:02:48]} 8. O-O {[%clk 0:02:58]}  Ne7 {[%clk 0:02:46]} 9. Nd2 {[%clk 0:02:58]}  g5 {[%clk 0:02:40]} 10. Nf3 {[%clk 0:02:34]}  h6 {[%clk 0:02:39]} 11. Nd4 {[%clk 0:02:35]}  c5 {[%clk 0:02:31]} 12. Nb5 {[%clk 0:02:31]}  Nf5 {[%clk 0:02:21]} 13. Bxf5 {[%clk 0:02:24]}  exf5 {[%clk 0:02:21]} 14. Qxd5 {[%clk 0:02:24]}  Qxd5 {[%clk 0:02:18]} 15. Nc7+ {[%clk 0:02:25]}  Kd7 {[%clk 0:02:16]} 16. Nxd5 {[%clk 0:02:26]}  Bb7 {[%clk 0:02:08]} 17. Rd1 {[%clk 0:02:25]}  Bxd5 {[%clk 0:01:58]} 18. Rxd5+ {[%clk 0:02:26]}  Ke6 {[%clk 0:01:59]} 19. c4 {[%clk 0:02:25]}  Be7 {[%clk 0:02:00]} 20. Be3 {[%clk 0:02:23]}  Rhd8 {[%clk 0:01:52]} 21. Rad1 {[%clk 0:02:18]}  Rxd5 {[%clk 0:01:28]} 22. Rxd5 {[%clk 0:02:19]}  Rc8 {[%clk 0:01:22]} 23. g3 {[%clk 0:02:14]}  a5 {[%clk 0:00:58]} 24. a4 {[%clk 0:02:05]}  f4 {[%clk 0:00:45]} 25. gxf4 {[%clk 0:02:05]}  gxf4 {[%clk 0:00:46]} 26. Bxf4 {[%clk 0:02:06]}  Rg8+ {[%clk 0:00:43]} 27. Kf1 {[%clk 0:02:06]}  Rg4 {[%clk 0:00:44]} 28. Bxh6 {[%clk 0:01:54]}  Rxc4 {[%clk 0:00:44]} 29. Rd3 {[%clk 0:01:53]}  Rh4 {[%clk 0:00:42]} 30. Bd2 {[%clk 0:01:52]}  Rxa4 {[%clk 0:00:41]} 31. Rb3 {[%clk 0:01:43]}  Kxe5 {[%clk 0:00:34]} 32. Rb5 {[%clk 0:01:33]}  Ra1+ {[%clk 0:00:32]} 33. Kg2 {[%clk 0:01:32]}  a4 {[%clk 0:00:32]} 34. b3 {[%clk 0:01:19]}  Kd5 {[%clk 0:00:28]} 35. bxa4 {[%clk 0:01:17]}  Rxa4 {[%clk 0:00:29]} 36. Rb7 {[%clk 0:01:15]}  Re4 {[%clk 0:00:27]} 37. Kf3 {[%clk 0:01:01]}  Re6 {[%clk 0:00:24]} 38. Rc7 {[%clk 0:00:52]}  c4 {[%clk 0:00:21]} 39. Be3 {[%clk 0:00:49]}  Bd6 {[%clk 0:00:12]} 40. Rxf7 {[%clk 0:00:48]}  Bxh2 {[%clk 0:00:12]} 41. Rf5+ {[%clk 0:00:49]}  Be5 {[%clk 0:00:11]} 42. Ke2 {[%clk 0:00:47]}  Ke4 {[%clk 0:00:11]} 43. Rh5 {[%clk 0:00:45]}  c3 {[%clk 0:00:07]} 44. f3+ {[%clk 0:00:45]}  Kd5 {[%clk 0:00:06]} 45. f4 {[%clk 0:00:43]}  Ke4 {[%clk 0:00:04]} 46. fxe5 {[%clk 0:00:43]}  Rxe5 {[%clk 0:00:05]} 47. Rh4+ {[%clk 0:00:43]}  Kd5 {[%clk 0:00:04]} 48. Rd4+ {[%clk 0:00:44]}  Ke6 {[%clk 0:00:02]} 49. Rc4 {[%clk 0:00:43]}  Kf5 {[%clk 0:00:01]} 50. Kf3 {[%clk 0:00:43]}  Rb5 {[%clk 0:00:01]} 51. Rxc3 {[%clk 0:00:43]}  Rd5 {[%clk 0:00:02]} 52. Rc6 {[%clk 0:00:43]}  Rb5 {[%clk 0:00:01]} 53. Bd4 {[%clk 0:00:43]}  Rb3+ {[%clk 0:00:01]} 54. Bc3 {[%clk 0:00:44]} 1-0


[Site "https://www.chess.com"]

[Event "Titled Tuesday Blitz June 21 Early 2022"]
[White "Pein, Jonathan"]
[Black "Buscar, Michael"]
[WhiteFideId "417092"]
[BlackFideId "2603616"]
[WhiteElo "2140"]
[BlackElo "2010"]
[Result "0-1"]
[Round "07"]
[TimeControl "180+1"]
[Date "2022.06.22"]
[WhiteClock "0:00:21"]
[BlackClock "0:00:05"]

1. e4 {[%clk 0:03:00]}  c5 {[%clk 0:02:52]} 2. Ne2 {[%clk 0:02:58]}  d5 {[%clk 0:02:51]} 3. exd5 {[%clk 0:02:57]}  Qxd5 {[%clk 0:02:49]} 4. d4 {[%clk 0:02:51]}  cxd4 {[%clk 0:02:44]} 5. Qxd4 {[%clk 0:02:52]}  Qxd4 {[%clk 0:02:39]} 6. Nxd4 {[%clk 0:02:53]}  e5 {[%clk 0:02:37]} 7. Nb5 {[%clk 0:02:50]}  Na6 {[%clk 0:02:34]} 8. N1c3 {[%clk 0:02:30]}  Nf6 {[%clk 0:02:24]} 9. Be3 {[%clk 0:02:29]}  b6 {[%clk 0:02:14]} 10. O-O-O {[%clk 0:02:27]}  Bb7 {[%clk 0:02:05]} 11. f3 {[%clk 0:02:28]}  Be7 {[%clk 0:01:57]} 12. Nd6+ {[%clk 0:02:13]}  Bxd6 {[%clk 0:01:56]} 13. Rxd6 {[%clk 0:02:13]}  Ke7 {[%clk 0:01:55]} 14. Rd1 {[%clk 0:02:00]}  Nc7 {[%clk 0:01:55]} 15. Bc4 {[%clk 0:01:52]}  Rhd8 {[%clk 0:01:52]} 16. Rxd8 {[%clk 0:01:44]}  Rxd8 {[%clk 0:01:45]} 17. Rd1 {[%clk 0:01:45]}  Nfd5 {[%clk 0:01:38]} 18. Bd2 {[%clk 0:01:27]}  Nxc3 {[%clk 0:01:17]} 19. Bxc3 {[%clk 0:01:25]}  Rxd1+ {[%clk 0:01:17]} 20. Kxd1 {[%clk 0:01:25]}  f6 {[%clk 0:00:57]} 21. Bb4+ {[%clk 0:01:25]}  Ke8 {[%clk 0:00:54]} 22. Bd6 {[%clk 0:01:09]}  Bd5 {[%clk 0:00:48]} 23. Bd3 {[%clk 0:01:04]}  Ne6 {[%clk 0:00:38]} 24. Bxh7 {[%clk 0:00:55]}  Nf4 {[%clk 0:00:37]} 25. g3 {[%clk 0:00:53]}  Bxf3+ {[%clk 0:00:37]} 26. Kd2 {[%clk 0:00:51]}  Ne6 {[%clk 0:00:32]} 27. c3 {[%clk 0:00:47]}  Ng5 {[%clk 0:00:24]} 28. Bg6+ {[%clk 0:00:42]}  Kd7 {[%clk 0:00:24]} 29. Bb8 {[%clk 0:00:42]}  a6 {[%clk 0:00:20]} 30. Ba7 {[%clk 0:00:42]}  Kc7 {[%clk 0:00:19]} 31. h4 {[%clk 0:00:40]}  Ne6 {[%clk 0:00:17]} 32. Ke3 {[%clk 0:00:38]}  Bc6 {[%clk 0:00:17]} 33. Bf5 {[%clk 0:00:32]}  Nd8 {[%clk 0:00:13]} 34. g4 {[%clk 0:00:25]}  Kb7 {[%clk 0:00:13]} 35. Bxb6 {[%clk 0:00:26]}  Kxb6 {[%clk 0:00:14]} 36. g5 {[%clk 0:00:27]}  fxg5 {[%clk 0:00:12]} 37. hxg5 {[%clk 0:00:28]}  Nf7 {[%clk 0:00:12]} 38. g6 {[%clk 0:00:24]}  Nd6 {[%clk 0:00:12]} 39. Bd3 {[%clk 0:00:23]}  Bd5 {[%clk 0:00:12]} 40. b3 {[%clk 0:00:23]}  Be6 {[%clk 0:00:12]} 41. c4 {[%clk 0:00:23]}  Bd7 {[%clk 0:00:09]} 42. a3 {[%clk 0:00:21]}  Bc6 {[%clk 0:00:10]} 43. b4 {[%clk 0:00:21]}  Ne8 {[%clk 0:00:09]} 44. c5+ {[%clk 0:00:22]}  Kb7 {[%clk 0:00:08]} 45. Bc4 {[%clk 0:00:21]}  Nf6 {[%clk 0:00:08]} 46. Bb3 {[%clk 0:00:21]}  Be8 {[%clk 0:00:06]} 47. Bc2 {[%clk 0:00:21]}  Kc7 {[%clk 0:00:06]} 48. a4 {[%clk 0:00:21]}  Nd5+ {[%clk 0:00:04]} 49. Ke4 {[%clk 0:00:21]}  Nxb4 {[%clk 0:00:04]} 50. Kxe5 {[%clk 0:00:22]}  Nxc2 {[%clk 0:00:05]} 51. Ke6 {[%clk 0:00:22]}  Bxg6 {[%clk 0:00:05]} 52. Ke5 {[%clk 0:00:21]}  Be8 {[%clk 0:00:04]} 53. Ke6 {[%clk 0:00:21]}  Bxa4 {[%clk 0:00:04]} 54. Ke5 {[%clk 0:00:21]}  Kc6 {[%clk 0:00:05]} 0-1


[Site "https://www.chess.com"]

[Event "Titled Tuesday Blitz June 21 Early 2022"]
[White "Perez Gormaz, Matias"]
[Black "Daeschler, Florian"]
[WhiteFideId "3406342"]
[BlackFideId "20678193"]
[WhiteElo "2341"]
[BlackElo "2221"]
[Result "0-1"]
[Round "07"]
[TimeControl "180+1"]
[Date "2022.06.22"]
[WhiteClock "0:00:03"]
[BlackClock "0:01:15"]

1. e4 {[%clk 0:03:00]}  c5 {[%clk 0:02:58]} 2. Nf3 {[%clk 0:03:01]}  d6 {[%clk 0:02:58]} 3. Bb5+ {[%clk 0:03:00]}  Nd7 {[%clk 0:02:58]} 4. a4 {[%clk 0:03:00]}  Nf6 {[%clk 0:02:53]} 5. Nc3 {[%clk 0:03:00]}  e5 {[%clk 0:02:51]} 6. d3 {[%clk 0:02:56]}  h6 {[%clk 0:02:49]} 7. a5 {[%clk 0:02:54]}  g6 {[%clk 0:02:49]} 8. Bc4 {[%clk 0:02:50]}  Bg7 {[%clk 0:02:48]} 9. h3 {[%clk 0:02:49]}  O-O {[%clk 0:02:40]} 10. g4 {[%clk 0:02:49]}  Kh7 {[%clk 0:02:40]} 11. Be3 {[%clk 0:02:32]}  Nb8 {[%clk 0:02:39]} 12. Qd2 {[%clk 0:02:28]}  Nc6 {[%clk 0:02:37]} 13. g5 {[%clk 0:02:28]}  Nh5 {[%clk 0:02:30]} 14. gxh6 {[%clk 0:02:28]}  Bf6 {[%clk 0:02:30]} 15. Rg1 {[%clk 0:01:52]}  Nd4 {[%clk 0:02:21]} 16. Bxd4 {[%clk 0:01:45]}  cxd4 {[%clk 0:02:21]} 17. Nd5 {[%clk 0:01:46]}  Be6 {[%clk 0:02:17]} 18. O-O-O {[%clk 0:01:16]}  Bxd5 {[%clk 0:02:14]} 19. Bxd5 {[%clk 0:01:14]}  Rb8 {[%clk 0:02:05]} 20. Rg4 {[%clk 0:01:03]}  a6 {[%clk 0:01:48]} 21. Rdg1 {[%clk 0:01:02]}  b6 {[%clk 0:01:47]} 22. Ng5+ {[%clk 0:00:25]}  Bxg5 {[%clk 0:01:45]} 23. Rxg5 {[%clk 0:00:25]}  Nf4 {[%clk 0:01:38]} 24. axb6 {[%clk 0:00:04]}  Qxb6 {[%clk 0:01:36]} 25. Bb3 {[%clk 0:00:04]}  a5 {[%clk 0:01:26]} 26. Kd1 {[%clk 0:00:04]}  a4 {[%clk 0:01:24]} 27. Bxa4 {[%clk 0:00:02]}  Qxb2 {[%clk 0:01:23]} 28. Bb3 {[%clk 0:00:03]}  Ra8 {[%clk 0:01:18]} 29. Qc1 {[%clk 0:00:02]}  Ra1 {[%clk 0:01:17]} 30. Kd2 {[%clk 0:00:02]}  Qc3+ {[%clk 0:01:14]} 31. Kd1 {[%clk 0:00:03]}  Rxc1+ {[%clk 0:01:15]} 0-1


[Site "https://www.chess.com"]

[Event "Titled Tuesday Blitz June 21 Early 2022"]
[White "Pinheiro, Iung Alicio de O."]
[Black "Ljukin, Sergei"]
[WhiteFideId "2104350"]
[BlackFideId "14102200"]
[WhiteElo "2283"]
[BlackElo "2312"]
[Result "0-1"]
[Round "07"]
[TimeControl "180+1"]
[Date "2022.06.22"]
[WhiteClock "0:00:07"]
[BlackClock "0:00:34"]

1. e4 {[%clk 0:02:59]}  e6 {[%clk 0:02:58]} 2. d4 {[%clk 0:02:57]}  d5 {[%clk 0:02:56]} 3. e5 {[%clk 0:02:58]}  c5 {[%clk 0:02:55]} 4. c3 {[%clk 0:02:58]}  Nc6 {[%clk 0:02:54]} 5. Nf3 {[%clk 0:02:58]}  Qb6 {[%clk 0:02:54]} 6. Bd3 {[%clk 0:02:58]}  cxd4 {[%clk 0:02:54]} 7. O-O {[%clk 0:02:59]}  Bd7 {[%clk 0:02:53]} 8. Re1 {[%clk 0:02:58]}  a6 {[%clk 0:02:48]} 9. a3 {[%clk 0:02:55]}  dxc3 {[%clk 0:02:46]} 10. Nxc3 {[%clk 0:02:55]}  f6 {[%clk 0:02:45]} 11. exf6 {[%clk 0:01:56]}  Nxf6 {[%clk 0:02:43]} 12. Bg5 {[%clk 0:01:57]}  Be7 {[%clk 0:02:39]} 13. Bxf6 {[%clk 0:01:54]}  gxf6 {[%clk 0:02:38]} 14. b4 {[%clk 0:01:42]}  O-O {[%clk 0:02:10]} 15. Nh4 {[%clk 0:01:33]}  Rf7 {[%clk 0:01:54]} 16. Re3 {[%clk 0:01:28]}  Ne5 {[%clk 0:01:47]} 17. Rg3+ {[%clk 0:01:27]}  Rg7 {[%clk 0:01:43]} 18. Bc2 {[%clk 0:00:38]}  Rxg3 {[%clk 0:01:35]} 19. hxg3 {[%clk 0:00:39]}  Rc8 {[%clk 0:01:19]} 20. Qh5 {[%clk 0:00:37]}  f5 {[%clk 0:01:19]} 21. Nxd5 {[%clk 0:00:35]}  exd5 {[%clk 0:01:11]} 22. Bxf5 {[%clk 0:00:35]}  Bxf5 {[%clk 0:01:01]} 23. Nxf5 {[%clk 0:00:36]}  Bf6 {[%clk 0:00:56]} 24. Qh6 {[%clk 0:00:25]}  Ng4 {[%clk 0:00:44]} 25. Qf4 {[%clk 0:00:21]}  Qxf2+ {[%clk 0:00:40]} 26. Qxf2 {[%clk 0:00:21]}  Nxf2 {[%clk 0:00:40]} 27. Kxf2 {[%clk 0:00:18]}  Rc2+ {[%clk 0:00:40]} 28. Ke3 {[%clk 0:00:05]}  Bxa1 {[%clk 0:00:38]} 29. Ne7+ {[%clk 0:00:06]}  Kf7 {[%clk 0:00:37]} 30. Nxd5 {[%clk 0:00:07]}  Ra2 {[%clk 0:00:34]} 0-1


[Site "https://www.chess.com"]

[Event "Titled Tuesday Blitz June 21 Early 2022"]
[White "Prieto Aranguren, Alain"]
[Black "Piliczewski, Bogusz"]
[WhiteFideId "2268906"]
[BlackFideId "1104144"]
[WhiteElo "2224"]
[BlackElo "1896"]
[Result "1-0"]
[Round "07"]
[TimeControl "180+1"]
[Date "2022.06.22"]
[WhiteClock "0:01:14"]
[BlackClock "0:00:03"]

1. d4 {[%clk 0:02:59]}  d5 {[%clk 0:02:56]} 2. Nf3 {[%clk 0:02:57]}  Nf6 {[%clk 0:02:55]} 3. Bg5 {[%clk 0:02:56]}  Ne4 {[%clk 0:02:54]} 4. Bc1 {[%clk 0:02:56]}  Bf5 {[%clk 0:02:55]} 5. Nh4 {[%clk 0:02:54]}  Bg4 {[%clk 0:02:37]} 6. f3 {[%clk 0:02:44]}  e6 {[%clk 0:02:37]} 7. g3 {[%clk 0:02:43]}  Nxg3 {[%clk 0:01:49]} 8. hxg3 {[%clk 0:02:40]}  Bh5 {[%clk 0:01:40]} 9. Ng2 {[%clk 0:02:38]}  Bg6 {[%clk 0:01:39]} 10. Nf4 {[%clk 0:02:37]}  Qg5 {[%clk 0:01:33]} 11. Kf2 {[%clk 0:02:32]}  Bd6 {[%clk 0:01:31]} 12. Nh5 {[%clk 0:02:15]}  Qe7 {[%clk 0:00:46]} 13. Nxg7+ {[%clk 0:02:13]}  Kd7 {[%clk 0:00:42]} 14. Nh5 {[%clk 0:02:06]}  Rg8 {[%clk 0:00:31]} 15. g4 {[%clk 0:01:50]}  Nc6 {[%clk 0:00:23]} 16. e3 {[%clk 0:01:40]}  f5 {[%clk 0:00:18]} 17. Bh3 {[%clk 0:01:27]}  Qh4+ {[%clk 0:00:10]} 18. Ke2 {[%clk 0:01:22]}  Bxh5 {[%clk 0:00:10]} 19. gxh5 {[%clk 0:01:22]}  Qxh5 {[%clk 0:00:06]} 20. Nc3 {[%clk 0:01:14]}  Rg3 {[%clk 0:00:03]} 21. Qf1 {[%clk 0:01:14]} 1-0


[Site "https://www.chess.com"]

[Event "Titled Tuesday Blitz June 21 Early 2022"]
[White "Rodchenkov, Sergey D."]
[Black "Starozhilov, Leonid"]
[WhiteFideId "4168712"]
[BlackFideId "14106752"]
[WhiteElo "2293"]
[BlackElo "2414"]
[Result "0-1"]
[Round "07"]
[TimeControl "180+1"]
[Date "2022.06.21"]
[WhiteClock "0:00:06"]
[BlackClock "0:00:04"]

1. e4 {[%clk 0:03:00]}  Nc6 {[%clk 0:02:59]} 2. d4 {[%clk 0:02:58]}  d6 {[%clk 0:03:00]} 3. Bb5 {[%clk 0:02:47]}  a6 {[%clk 0:02:56]} 4. Bxc6+ {[%clk 0:02:42]}  bxc6 {[%clk 0:02:57]} 5. c4 {[%clk 0:02:42]}  Nf6 {[%clk 0:02:53]} 6. Nc3 {[%clk 0:02:42]}  g6 {[%clk 0:02:50]} 7. f3 {[%clk 0:02:36]}  Bg7 {[%clk 0:02:50]} 8. Be3 {[%clk 0:02:36]}  Rb8 {[%clk 0:02:50]} 9. Qd2 {[%clk 0:02:37]}  Nd7 {[%clk 0:02:49]} 10. O-O-O {[%clk 0:02:25]}  e5 {[%clk 0:02:38]} 11. Bh6 {[%clk 0:02:24]}  Bf6 {[%clk 0:02:32]} 12. dxe5 {[%clk 0:02:19]}  Nxe5 {[%clk 0:02:31]} 13. b3 {[%clk 0:02:13]}  Be6 {[%clk 0:02:31]} 14. Nge2 {[%clk 0:02:10]}  Qe7 {[%clk 0:02:12]} 15. c5 {[%clk 0:01:39]}  dxc5 {[%clk 0:01:45]} 16. h3 {[%clk 0:01:23]}  c4 {[%clk 0:01:44]} 17. f4 {[%clk 0:01:06]}  Nd3+ {[%clk 0:01:33]} 18. Kb1 {[%clk 0:01:06]}  Qb4 {[%clk 0:01:02]} 19. e5 {[%clk 0:00:45]}  Be7 {[%clk 0:00:32]} 20. Nd4 {[%clk 0:00:39]}  Qb6 {[%clk 0:00:24]} 21. Nxe6 {[%clk 0:00:38]}  fxe6 {[%clk 0:00:24]} 22. Ka1 {[%clk 0:00:38]}  Qd4 {[%clk 0:00:23]} 23. Kb1 {[%clk 0:00:29]}  Bb4 {[%clk 0:00:21]} 24. Ne2 {[%clk 0:00:28]}  Qe4 {[%clk 0:00:17]} 25. Qc2 {[%clk 0:00:25]}  Kf7 {[%clk 0:00:11]} 26. Rhf1 {[%clk 0:00:21]}  Rhd8 {[%clk 0:00:11]} 27. f5 {[%clk 0:00:15]}  gxf5 {[%clk 0:00:11]} 28. Ng3 {[%clk 0:00:13]}  Qxe5 {[%clk 0:00:09]} 29. Nxf5 {[%clk 0:00:10]}  exf5 {[%clk 0:00:09]} 30. g4 {[%clk 0:00:10]}  Kg8 {[%clk 0:00:05]} 31. gxf5 {[%clk 0:00:10]}  Qc3 {[%clk 0:00:05]} 32. Rg1+ {[%clk 0:00:10]}  Kf7 {[%clk 0:00:05]} 33. Qg2 {[%clk 0:00:07]}  Rg8 {[%clk 0:00:03]} 34. Qxc6 {[%clk 0:00:06]}  Qb2# {[%clk 0:00:04]} 0-1


[Site "https://www.chess.com"]

[Event "Titled Tuesday Blitz June 21 Early 2022"]
[White "Samaganova, Aleksandra"]
[Black "Petrovic, Aleksa"]
[WhiteFideId "13800221"]
[BlackFideId "967629"]
[WhiteElo "1864"]
[BlackElo "2117"]
[Result "0-1"]
[Round "07"]
[TimeControl "180+1"]
[Date "2022.06.22"]
[WhiteClock "0:00:01"]
[BlackClock "0:00:16"]

1. c4 {[%clk 0:03:00]}  e6 {[%clk 0:02:57]} 2. Nc3 {[%clk 0:03:00]}  d5 {[%clk 0:02:56]} 3. e3 {[%clk 0:02:58]}  Nf6 {[%clk 0:02:54]} 4. Nf3 {[%clk 0:02:58]}  Be7 {[%clk 0:02:51]} 5. d4 {[%clk 0:02:57]}  O-O {[%clk 0:02:50]} 6. Bd3 {[%clk 0:02:57]}  a6 {[%clk 0:02:48]} 7. cxd5 {[%clk 0:02:46]}  exd5 {[%clk 0:02:47]} 8. O-O {[%clk 0:02:45]}  Bg4 {[%clk 0:02:36]} 9. h3 {[%clk 0:02:42]}  Bxf3 {[%clk 0:02:27]} 10. Qxf3 {[%clk 0:02:42]}  c5 {[%clk 0:02:28]} 11. dxc5 {[%clk 0:02:37]}  Nbd7 {[%clk 0:02:28]} 12. b4 {[%clk 0:01:48]}  a5 {[%clk 0:02:11]} 13. b5 {[%clk 0:01:18]}  Ne5 {[%clk 0:02:03]} 14. Qe2 {[%clk 0:01:17]}  d4 {[%clk 0:01:55]} 15. Na4 {[%clk 0:00:46]}  dxe3 {[%clk 0:01:51]} 16. Bc2 {[%clk 0:00:44]}  exf2+ {[%clk 0:01:45]} 17. Qxf2 {[%clk 0:00:41]}  Nd3 {[%clk 0:01:30]} 18. Qf5 {[%clk 0:00:27]}  Qd4+ {[%clk 0:01:16]} 19. Kh1 {[%clk 0:00:25]}  Qxa1 {[%clk 0:00:52]} 20. Bxd3 {[%clk 0:00:22]}  Qxa2 {[%clk 0:00:45]} 21. Nb6 {[%clk 0:00:21]}  Rad8 {[%clk 0:00:45]} 22. Bb1 {[%clk 0:00:20]}  Qe6 {[%clk 0:00:40]} 23. Qf2 {[%clk 0:00:20]}  Ne4 {[%clk 0:00:37]} 24. Qe3 {[%clk 0:00:15]}  Bxc5 {[%clk 0:00:34]} 25. Qxe4 {[%clk 0:00:09]}  Qxe4 {[%clk 0:00:34]} 26. Bxe4 {[%clk 0:00:10]}  Bxb6 {[%clk 0:00:35]} 27. Bxb7 {[%clk 0:00:09]}  Rfe8 {[%clk 0:00:33]} 28. Bc6 {[%clk 0:00:08]}  Re2 {[%clk 0:00:32]} 29. Bg5 {[%clk 0:00:07]}  f6 {[%clk 0:00:31]} 30. Bf4 {[%clk 0:00:06]}  a4 {[%clk 0:00:29]} 31. Ra1 {[%clk 0:00:05]}  Rd4 {[%clk 0:00:26]} 32. Bg3 {[%clk 0:00:02]}  Kf7 {[%clk 0:00:24]} 33. Bb7 {[%clk 0:00:02]}  Bc5 {[%clk 0:00:22]} 34. Bf3 {[%clk 0:00:02]}  Rb2 {[%clk 0:00:19]} 35. Bc7 {[%clk 0:00:02]}  Rxb5 {[%clk 0:00:18]} 36. Bc6 {[%clk 0:00:01]}  Rb2 {[%clk 0:00:17]} 37. Rxa4 {[%clk 0:00:01]}  Rxa4 {[%clk 0:00:17]} 38. Bxa4 {[%clk 0:00:02]}  Rb1+ {[%clk 0:00:16]} 39. Kh2 {[%clk 0:00:02]}  Bg1+ {[%clk 0:00:17]} 40. Kg3 {[%clk 0:00:02]}  Ra1 {[%clk 0:00:16]} 41. Bb3+ {[%clk 0:00:01]}  Ke7 {[%clk 0:00:16]} 42. Bc2 {[%clk 0:00:01]}  Ra3+ {[%clk 0:00:16]} 0-1


[Site "https://www.chess.com"]

[Event "Titled Tuesday Blitz June 21 Early 2022"]
[White "Sargsyan, Anna M."]
[Black "Kosteniuk, Alexandra"]
[WhiteFideId "13308130"]
[BlackFideId "4128125"]
[WhiteElo "2271"]
[BlackElo "2469"]
[Result "0-1"]
[Round "07"]
[TimeControl "180+1"]
[Date "2022.06.21"]
[WhiteClock "0:00:06"]
[BlackClock "0:00:15"]

1. e4 {[%clk 0:03:00]}  c6 {[%clk 0:02:59]} 2. Nf3 {[%clk 0:02:55]}  d5 {[%clk 0:02:59]} 3. exd5 {[%clk 0:02:55]}  cxd5 {[%clk 0:02:59]} 4. Ne5 {[%clk 0:02:56]}  Nf6 {[%clk 0:02:54]} 5. d4 {[%clk 0:02:55]}  Nbd7 {[%clk 0:02:43]} 6. Bd3 {[%clk 0:02:53]}  g6 {[%clk 0:02:43]} 7. O-O {[%clk 0:02:53]}  Bg7 {[%clk 0:02:43]} 8. Re1 {[%clk 0:02:53]}  O-O {[%clk 0:02:43]} 9. Nd2 {[%clk 0:02:54]}  Nxe5 {[%clk 0:02:38]} 10. dxe5 {[%clk 0:02:54]}  Ng4 {[%clk 0:02:38]} 11. Nf3 {[%clk 0:02:31]}  f6 {[%clk 0:02:37]} 12. exf6 {[%clk 0:02:28]}  exf6 {[%clk 0:02:26]} 13. Bf4 {[%clk 0:02:27]}  Qb6 {[%clk 0:02:24]} 14. Qd2 {[%clk 0:02:22]}  g5 {[%clk 0:01:57]} 15. Bg3 {[%clk 0:02:15]}  Nh6 {[%clk 0:01:48]} 16. Re7 {[%clk 0:01:43]}  Bg4 {[%clk 0:01:47]} 17. Rae1 {[%clk 0:01:39]}  Qxb2 {[%clk 0:01:19]} 18. Nxg5 {[%clk 0:01:00]}  fxg5 {[%clk 0:00:59]} 19. Bxh7+ {[%clk 0:00:28]}  Kh8 {[%clk 0:00:47]} 20. Rxg7 {[%clk 0:00:20]}  Rae8 {[%clk 0:00:20]} 21. Rge7 {[%clk 0:00:19]}  Rxe7 {[%clk 0:00:19]} 22. Rxe7 {[%clk 0:00:20]}  Nf7 {[%clk 0:00:19]} 23. Bg6 {[%clk 0:00:15]}  Qf6 {[%clk 0:00:16]} 24. Rxf7 {[%clk 0:00:06]}  Qa1+ {[%clk 0:00:15]} 0-1


[Site "https://www.chess.com"]